bitfinex/quotes_ETHUSD_20240916
["timestamp","ask_amount","ask_price","bid_price","bid_amount"]
[1726476243995,7.33884209,2325.4,2325.3,2.85041599]
[1726476244199,7.33884209,2325.4,2325.3,14.42720147]
[1726476244200,0.03850209,2325.4,2325.3,14.42720147]
[1726476244515,4.29978,2325.7,2325.3,10.13381532]
[1726476244718,4.29978,2325.7,2325.4,5.56834686]
[1726476244921,4.29978,2325.7,2325.5,5.21692735]
[1726476245122,4.29978,2325.7,2325.6,2.85977803]
[1726476245417,4.29978,2325.7,2325.6,1.2038102]
[1726476245418,7.29978,2325.7,2325.6,1.2038102]
[1726476245928,7.29978,2325.7,2325.6,0.09983165]
[1726476245929,25.03539573,2325.7,2325.6,0.09983165]
[1726476246107,4.30107,2325.0,2324.9,0.89612679]
[1726476246415,10.21537,2325.1,2324.9,2.76185675]
[1726476246723,4.30107,2325.0,2324.9,0.89612679]
[1726476247012,4.30107,2325.0,2324.9,3.65784465]
[1726476247215,4.30107,2325.0,2324.9,2.76171786]
[1726476247377,4.30107,2325.0,2324.9,3.65784465]
[1726476247579,4.30107,2325.0,2324.9,2.76171786]
[1726476248915,14.67634,2325.0,2324.9,2.76171786]
[1726476249290,14.67645,2325.0,2324.9,1.10461557]
[1726476249492,7.30144,2324.8,2324.6,0.89612679]
[1726476249798,7.30144,2324.8,2324.7,2.7618325]
[1726476250138,11.71041876,2324.8,2324.7,2.7618325]
[1726476250292,11.71041876,2324.8,2324.7,1.104733]
[1726476250492,4.30176,2324.7,2324.5,0.89612679]
[1726476250730,11.65160502,2324.7,2324.6,1.10451058]
[1726476250936,8.60436,2324.4,2324.3,0.89612679]
[1726476251099,8.60436,2324.4,2324.1,1.78273333]
[1726476251100,8.6051,2324.2,2324.1,0.89612679]
[1726476251297,8.6051,2324.2,2324.0,3.55427142]
[1726476251298,4.30292,2324.0,2323.9,0.89612679]
[1726476251527,14.54634,2324.0,2323.9,2.7607]
[1726476251734,14.54634,2324.0,2323.8,0.62919767]
[1726476251735,8.60622,2323.9,2323.8,0.62919767]
[1726476251937,8.60622,2323.9,2323.8,1.73382637]
[1726476252229,11.60622,2323.9,2323.8,0.62919767]
[1726476252848,15.90933,2323.9,2323.8,0.62919767]
[1726476253018,4.30385,2323.5,2323.3,1.69581465]
[1726476253220,11.60806,2323.4,2323.3,0.0385021]
[1726476254134,11.60806,2323.4,2323.3,0.12398039]
[1726476255234,11.60806,2323.4,2323.3,0.0385021]
[1726476256810,11.60806,2323.4,2323.3,0.12398039]
[1726476257012,11.60806,2323.4,2323.3,0.0385021]
[1726476257217,11.60806,2323.4,2323.3,0.12398039]
[1726476258944,7.30403,2323.4,2323.3,0.12398039]
[1726476259449,7.30387,2323.5,2323.3,0.12398039]
[1726476259653,4.30403,2323.4,2323.3,0.12398039]
[1726476259815,11.60806,2323.4,2323.3,0.12398039]
[1726476262912,14.60316,2323.4,2323.3,0.12398039]
[1726476263748,18.90719,2323.4,2323.3,0.12398039]
[1726476265052,8.61066,2322.7,2322.6,0.0385021]
[1726476266544,3.0,2323.0,2322.6,0.0385021]
[1726476266711,4.30533,2322.7,2322.6,0.75781614]
[1726476267045,4.30533,2322.7,2322.6,0.0385021]
[1726476267982,4.30527,2322.8,2322.6,0.0385021]
[1726476268108,3.0,2322.9,2322.6,0.0385021]
[1726476268306,7.30507,2322.9,2322.6,0.0385021]
[1726476268548,7.30507,2322.9,2322.6,1.61896914]
[1726476269330,3.0,2323.0,2322.7,4.17133833]
[1726476269535,3.0,2323.0,2322.8,3.1023]
[1726476269911,7.30486,2323.0,2322.8,3.1023]
[1726476270643,3.0,2323.0,2322.8,3.1023]
[1726476270820,3.0,2323.0,2322.8,4.26405604]
[1726476272662,3.0,2323.0,2322.9,0.08546001]
[1726476273164,7.30477,2323.0,2322.9,0.08546001]
[1726476273722,10.30767,2323.0,2322.9,0.08546001]
[1726476273954,10.30767,2323.0,2322.6,0.0385021]
[1726476274134,4.30499,2322.9,2322.6,0.0385021]
[1726476275361,4.30499,2322.9,2322.6,1.17094614]
[1726476276663,7.30477,2323.0,2322.7,7.28223833]
[1726476279892,7.30477,2323.0,2322.6,1.17094614]
[1726476281505,7.30477,2323.0,2322.6,5.47645614]
[1726476281660,7.30477,2323.0,2322.7,1.26252945]
[1726476282068,7.30486,2323.0,2322.7,1.26252945]
[1726476283304,4.30501,2322.9,2322.6,1.17094614]
[1726476284090,4.41263528,2322.9,2322.6,1.17094614]
[1726476284453,3.40593799,2322.9,2322.6,1.17094614]
[1726476288577,3.40593799,2322.9,2322.7,0.08590501]
[1726476289305,3.40593799,2322.9,2322.7,0.92647396]
[1726476290307,7.30479,2323.0,2322.8,2.8832]
[1726476290461,3.0,2323.2,2322.9,4.17133833]
[1726476290666,3.0,2323.2,2322.9,4.96943956]
[1726476290865,3.0,2323.2,2323.0,0.68171984]
[1726476291161,3.0,2323.2,2323.0,0.08590501]
[1726476291364,4.30432,2323.3,2323.0,1.31026247]
[1726476294295,3.0,2323.4,2323.1,4.17133833]
[1726476294501,3.0,2323.4,2323.2,4.05733308]
[1726476294703,3.0,2323.4,2323.2,4.14312954]
[1726476295213,7.30412,2323.4,2323.2,4.14312954]
[1726476295526,7.30412,2323.4,2323.2,1.06442954]
[1726476295866,14.67584,2323.3,2323.2,0.08579646]
[1726476296406,14.67584,2323.3,2322.7,8.04956512]
[1726476296407,4.30442,2323.2,2322.8,3.15323377]
[1726476296613,4.30442,2323.2,2322.9,9.02764437]
[1726476296768,3.0,2323.3,2323.0,2.7688404]
[1726476296972,7.3043,2323.3,2323.1,5.7509404]
[1726476297172,7.3043,2323.3,2323.2,2.77069423]
[1726476297405,3.0,2323.3,2323.2,2.77069423]
[1726476297613,7.30422,2323.3,2323.2,1.10827769]
[1726476298393,7.30422,2323.3,2323.2,2.77203156]
[1726476298583,3.0,2323.3,2323.2,2.77203156]
[1726476298790,3.0,2323.3,2323.2,3.42895284]
[1726476298979,7.30422,2323.3,2323.2,3.42895284]
[1726476300095,4.30387,2323.5,2323.2,3.42895284]
[1726476300298,7.304,2323.5,2323.3,1.10921227]
[1726476300497,4.30369,2323.6,2323.4,3.25328854]
[1726476300812,4.30356,2323.7,2323.5,2.77230318]
[1726476301018,4.30356,2323.7,2323.4,1.37696015]
[1726476301169,4.30356,2323.7,2323.5,3.89183073]
[1726476301371,4.30356,2323.7,2323.5,1.11966023]
[1726476301603,4.30356,2323.7,2323.4,0.48083336]
[1726476301830,3.0,2323.6,2323.5,1.10868405]
[1726476302014,3.0,2323.6,2323.5,2.77163222]
[1726476302332,3.0,2323.6,2323.4,0.48083336]
[1726476302333,7.30366,2323.6,2323.4,0.48083336]
[1726476302640,4.30394,2323.5,2323.2,4.59524807]
[1726476302849,4.30394,2323.5,2323.3,3.78292094]
[1726476302993,4.30394,2323.5,2323.3,1.01107702]
[1726476303339,4.30417,2323.4,2323.2,0.89612679]
[1726476303503,4.30417,2323.4,2323.1,0.89612679]
[1726476303504,4.30422,2323.3,2323.1,0.89612679]
[1726476303688,4.30422,2323.3,2323.2,2.77173696]
[1726476304217,4.30446,2323.2,2323.0,0.89612679]
[1726476304432,4.30446,2323.2,2323.1,2.77188711]
[1726476304607,4.30446,2323.2,2323.1,1.10875484]
[1726476304805,4.30446,2323.2,2323.1,1.10877552]
[1726476305025,7.38946,2323.2,2323.1,1.10877552]
[1726476305208,4.30446,2323.2,2323.0,2.8588]
[1726476305574,4.30446,2323.2,2323.0,4.15222487]
[1726476307510,4.30446,2323.2,2323.0,1.29342487]
[1726476308293,4.30446,2323.2,2323.1,1.10829795]
[1726476308499,4.30446,2323.2,2323.0,1.29342487]
[1726476309128,4.30424,2323.3,2323.1,1.10822743]
[1726476309344,4.30424,2323.3,2323.1,0.74691174]
[1726476310219,4.30424,2323.3,2323.1,4.91825007]
[1726476310220,3.0,2323.3,2323.1,4.91825007]
[1726476310418,3.0,2323.4,2323.2,4.00655677]
[1726476310628,3.0,2323.4,2323.2,4.44917318]
[1726476311450,4.30376,2323.6,2323.3,4.17133833]
[1726476311743,4.30393,2323.5,2323.2,4.44917318]
[1726476312043,7.44043,2323.5,2323.1,1.64303853]
[1726476312207,7.44043,2323.5,2323.0,8.73743384]
[1726476312208,4.30438,2323.3,2323.2,1.10743199]
[1726476312408,4.3044,2323.2,2323.1,1.65977168]
[1726476312631,4.30438,2323.3,2323.1,1.10659888]
[1726476312906,7.44051,2323.5,2322.8,0.89612679]
[1726476312907,7.30118,2323.1,2322.8,0.89612679]
[1726476313141,7.30118,2323.1,2322.9,2.76708728]
[1726476313341,7.30118,2323.1,2322.7,5.06746512]
[1726476313342,4.30483,2323.0,2322.7,5.06746512]
[1726476313650,4.30483,2323.0,2322.8,2.7670921]
[1726476313651,4.30496,2322.9,2322.8,2.7670921]
[1726476313810,4.30496,2322.9,2322.8,1.10683684]
[1726476314152,4.30496,2322.9,2322.8,1.10692191]
[1726476314318,4.30496,2322.9,2322.8,1.10697504]
[1726476314509,4.30496,2322.9,2322.7,1.66060867]
[1726476314706,4.30496,2322.9,2322.6,3.16343091]
[1726476314909,4.30496,2322.9,2322.7,2.7679939]
[1726476315139,4.30496,2322.9,2322.6,3.16343091]
[1726476315447,4.30496,2322.9,2322.7,2.76781428]
[1726476315622,4.30496,2322.9,2322.6,3.16343091]
[1726476315818,4.30496,2322.9,2322.7,2.76790092]
[1726476316148,4.30496,2322.9,2322.8,1.10715182]
[1726476316321,4.30496,2322.9,2322.7,1.66071508]
[1726476316645,4.30496,2322.9,2322.8,2.76779217]
[1726476317407,4.30483,2323.0,2322.8,2.76779217]
[1726476317611,7.30483,2323.0,2322.9,2.76779217]
[1726476317851,7.30483,2323.0,2322.9,1.10715509]
[1726476318022,4.30499,2322.9,2322.8,1.66111643]
[1726476318233,4.30499,2322.9,2322.8,2.7685232]
[1726476318753,4.30499,2322.9,2322.8,2.7685777]
[1726476318921,4.30499,2322.9,2322.8,2.85430902]
[1726476320068,3.0,2323.1,2322.9,3.0471]
[1726476320412,11.60918,2323.1,2323.0,0.08575303]
[1726476320730,4.30491,2323.0,2322.8,1.26065929]
[1726476321318,7.15576,2322.9,2322.8,1.26065929]
[1726476321513,7.15576,2322.9,2322.8,1.10752733]
[1726476321723,4.30515,2322.8,2322.7,1.66142321]
[1726476321946,4.30515,2322.8,2322.7,2.7690425]
[1726476322353,4.30515,2322.8,2322.7,1.10761929]
[1726476323119,4.30515,2322.8,2322.7,2.76908917]
[1726476323347,4.30515,2322.8,2322.7,1.10761929]
[1726476323551,4.30515,2322.8,2322.7,1.10752971]
[1726476324368,4.30515,2322.8,2322.7,2.76866248]
[1726476324565,4.30515,2322.8,2322.7,1.10752971]
[1726476325131,8.61043,2322.8,2322.7,1.10752971]
[1726476325332,8.61043,2322.8,2322.6,0.0385021]
[1726476325333,4.30533,2322.7,2322.6,0.0385021]
[1726476325564,4.30533,2322.7,2322.6,2.8072801]
[1726476326155,4.30533,2322.7,2322.6,2.80721082]
[1726476326372,4.30533,2322.7,2322.6,2.8071636]
[1726476327974,4.30533,2322.7,2322.6,1.1460133]
[1726476328189,4.30533,2322.7,2322.6,1.14577835]
[1726476328529,8.61066,2322.7,2322.6,1.14577835]
[1726476328846,18.98999,2322.7,2322.6,0.0385021]
[1726476329251,27.46665833,2322.7,2322.6,0.0385021]
[1726476329783,31.77198833,2322.7,2322.6,0.0385021]
[1726476330138,31.77198833,2322.7,2321.9,0.0385021]
[1726476330139,18.74479,2322.0,2321.9,0.0385021]
[1726476330334,27.22275833,2322.0,2321.9,0.0385021]
[1726476331169,22.91612833,2322.0,2321.9,0.0385021]
[1726476331379,27.22275833,2322.0,2321.9,0.0385021]
[1726476331556,22.91612833,2322.0,2321.9,0.0385021]
[1726476333101,18.74479,2322.0,2321.9,0.0385021]
[1726476333981,14.43816,2322.0,2321.9,0.0385021]
[1726476334683,11.61326,2322.0,2321.9,0.1191057]
[1726476334840,11.61326,2322.0,2321.9,0.0385021]
[1726476335041,11.61326,2322.0,2321.9,0.1191057]
[1726476339483,15.91989,2322.0,2321.9,0.1191057]
[1726476339683,11.61326,2322.0,2321.9,0.1191057]
[1726476339877,11.61326,2322.0,2321.9,0.0385021]
[1726476340378,7.30663,2322.0,2321.9,0.0385021]
[1726476340905,7.30663,2322.0,2321.9,0.1191057]
[1726476341064,7.30663,2322.0,2321.9,0.0385021]
[1726476341065,11.61326,2322.0,2321.9,0.0385021]
[1726476341266,11.61326,2322.0,2321.9,0.1191057]
[1726476342417,3.0,2322.0,2321.9,0.1191057]
[1726476342566,4.3062,2322.3,2321.9,0.1191057]
[1726476342763,4.30589,2322.4,2322.0,3.0444]
[1726476343112,3.1205,2322.6,2322.1,8.7939989]
[1726476343113,8.61127,2322.6,2322.1,8.7939989]
[1726476343411,4.30572,2322.5,2322.1,4.5682925]
[1726476343611,3.1205,2322.8,2322.1,0.0806036]
[1726476343612,4.30607,2322.3,2322.1,0.0806036]
[1726476343765,4.41392484,2322.2,2322.1,0.0806036]
[1726476343969,8.72018484,2322.2,2322.1,0.0806036]
[1726476344193,4.30663,2322.0,2321.9,0.0385021]
[1726476344407,11.61326,2322.0,2321.9,0.0385021]
[1726476345175,7.30663,2322.0,2321.9,0.0385021]
[1726476345382,7.30663,2322.0,2321.9,3.1255021]
[1726476345383,3.0,2322.0,2321.9,3.1255021]
[1726476345575,3.0,2322.1,2321.9,3.85518614]
[1726476345777,4.30612,2322.3,2321.9,12.33324447]
[1726476345979,4.30612,2322.3,2321.9,11.60356043]
[1726476346202,4.30612,2322.3,2322.0,0.08388122]
[1726476346404,8.61205,2322.4,2322.0,1.25262539]
[1726476346574,4.30599,2322.4,2322.0,1.16874417]
[1726476346779,4.30599,2322.4,2321.9,11.60356043]
[1726476346780,4.30599,2322.4,2322.1,1.27723046]
[1726476347189,3.0,2322.3,2322.1,1.27723046]
[1726476347687,7.30608,2322.3,2322.1,1.27723046]
[1726476348204,3.0,2322.3,2322.1,1.27723046]
[1726476348369,3.0,2322.5,2322.2,0.55838305]
[1726476348566,3.10765434,2322.7,2322.2,0.07986534]
[1726476348818,7.30607,2322.3,2322.2,0.07986534]
[1726476348973,4.3066,2322.1,2321.9,3.1255021]
[1726476349294,4.30653,2322.1,2321.9,3.1255021]
[1726476353174,4.30663,2322.0,2321.9,3.1255021]
[1726476353399,4.30663,2322.0,2321.9,0.0385021]
[1726476356733,3.0,2322.2,2322.0,2.9695]
[1726476356898,7.30634,2322.2,2322.0,3.70099721]
[1726476357099,7.30634,2322.2,2322.0,2.9695]
[1726476360788,3.0,2322.2,2322.0,2.9695]
[1726476361135,7.30634,2322.2,2322.0,2.9695]
[1726476361428,4.30663,2322.0,2321.9,0.0385021]
[1726476362505,4.30644,2322.1,2321.9,0.0385021]
[1726476363491,4.30644,2322.1,2322.0,0.0797568]
[1726476363693,8.61303,2322.1,2322.0,0.0797568]
[1726476364192,4.30644,2322.1,2322.0,0.0797568]
[1726476367936,11.72054759,2322.1,2322.0,0.0797568]
[1726476368097,16.02698759,2322.1,2322.0,0.0797568]
[1726476368293,11.72054759,2322.1,2322.0,0.0797568]
[1726476368533,16.02698759,2322.1,2322.0,0.0797568]
[1726476368722,11.72054759,2322.1,2322.0,0.0797568]
[1726476369698,19.02118759,2322.1,2322.0,0.0797568]
[1726476370695,18.91352,2322.1,2322.0,0.0797568]
[1726476371299,23.21996,2322.1,2322.0,0.0797568]
[1726476372500,18.91352,2322.1,2322.0,0.0797568]
[1726476372701,23.21996,2322.1,2322.0,0.0797568]
[1726476373253,18.91352,2322.1,2322.0,0.0797568]
[1726476373417,23.21996,2322.1,2322.0,0.0797568]
[1726476374600,18.91352,2322.1,2322.0,0.0797568]
[1726476374999,11.60708,2322.1,2322.0,0.0797568]
[1726476375314,15.91352,2322.1,2322.0,0.0797568]
[1726476375500,15.91352,2322.1,2321.3,9.34143695]
[1726476375501,4.30774,2321.4,2321.3,7.4]
[1726476375703,4.30644,2322.1,2321.3,1.11427193]
[1726476375704,8.61523,2321.5,2321.3,1.11427193]
[1726476375917,4.30783,2321.4,2321.2,2.9474021]
[1726476376219,7.30783,2321.4,2321.3,1.91577551]
[1726476376403,4.3071,2321.8,2321.3,7.75818163]
[1726476376605,7.30727,2321.7,2321.5,2.9667]
[1726476377535,3.0,2321.7,2321.5,2.9667]
[1726476378269,7.30719,2321.7,2321.5,2.9667]
[1726476378475,7.30719,2321.7,2321.5,3.96628229]
[1726476379293,7.30719,2321.7,2321.3,0.89612679]
[1726476379294,4.30774,2321.5,2321.3,0.89612679]
[1726476379451,4.30774,2321.5,2321.2,4.45028594]
[1726476379452,4.30776,2321.4,2321.2,4.00222889]
[1726476379780,4.30776,2321.4,2321.3,2.78583623]
[1726476380081,7.30731,2321.7,2321.4,3.0676]
[1726476380450,4.30737,2321.6,2321.4,3.0676]
[1726476380776,4.30755,2321.5,2321.4,3.0676]
[1726476380947,4.30755,2321.5,2321.4,4.18179406]
[1726476381555,4.30737,2321.6,2321.4,4.18179406]
[1726476381755,4.30737,2321.6,2321.4,3.0676]
[1726476382581,8.61485,2321.6,2321.4,3.99220923]
[1726476382880,8.61485,2321.6,2321.4,3.0676]
[1726476383194,8.61485,2321.6,2321.5,0.07787979]
[1726476383977,4.30737,2321.6,2321.5,0.07787979]
[1726476385794,14.70428,2321.6,2321.5,0.07787979]
[1726476386102,14.70428,2321.6,2321.2,0.0385021]
[1726476386103,4.30781,2321.4,2321.2,0.0385021]
[1726476386304,8.61564,2321.4,2321.2,0.0385021]
[1726476386657,4.30781,2321.4,2321.2,0.0385021]
[1726476386856,4.30781,2321.4,2321.2,0.86041999]
[1726476387722,4.30758,2321.5,2321.2,2.53172445]
[1726476387989,2.8267,2321.9,2321.2,2.53172445]
[1726476387990,3.0,2321.7,2321.4,2.9254]
[1726476388259,4.30653,2322.1,2321.6,7.23268]
[1726476388418,4.30653,2322.1,2321.8,2.8614]
[1726476388566,4.30579,2322.5,2321.9,4.30679]
[1726476388767,4.30579,2322.5,2322.1,4.17133833]
[1726476389001,4.30579,2322.5,2322.1,1.56460683]
[1726476389168,8.61159,2322.5,2322.1,1.56460683]
[1726476389366,4.30547,2322.7,2322.3,4.17133833]
[1726476389678,4.30554,2322.6,2322.3,4.17133833]
[1726476389884,4.30554,2322.6,2322.3,5.90072721]
[1726476390100,3.0,2322.5,2322.3,5.90072721]
[1726476390269,4.30554,2322.6,2322.3,5.90072721]
[1726476390270,3.0,2322.6,2322.3,5.90072721]
[1726476390615,2.8564,2323.0,2322.7,3.1019]
[1726476390616,4.30489,2323.0,2322.7,3.1019]
[1726476390827,4.30498,2322.9,2322.5,7.27323833]
[1726476391118,4.30525,2322.8,2322.5,3.1019]
[1726476391266,4.30498,2322.9,2322.5,3.1019]
[1726476391566,8.61005,2322.9,2322.5,7.27323833]
[1726476391768,4.30528,2322.8,2322.5,4.76657635]
[1726476392020,4.30498,2322.9,2322.5,4.76657635]
[1726476392021,8.61011,2322.9,2322.5,3.1019]
[1726476392675,3.0,2322.8,2322.5,3.1019]
[1726476393207,7.30519,2322.8,2322.5,3.1019]
[1726476393581,7.30519,2322.8,2322.6,0.07596976]
[1726476394192,4.30533,2322.7,2322.6,0.07596976]
[1726476395977,3.0,2322.8,2322.6,0.07596976]
[1726476395978,7.30515,2322.8,2322.6,0.07596976]
[1726476396142,3.0,2322.8,2322.6,0.07596976]
[1726476396340,7.30479,2323.0,2322.6,1.24147757]
[1726476396765,3.0,2323.0,2322.6,5.54697757]
[1726476396966,3.0,2323.0,2322.7,1.28202159]
[1726476397173,7.30479,2323.0,2322.7,1.28202159]
[1726476397469,7.30479,2323.0,2322.8,0.07556844]
[1726476399151,4.30442,2323.2,2322.9,3.1297]
[1726476399533,4.30442,2323.2,2323.0,0.07556844]
[1726476401677,3.0,2323.2,2323.0,0.07556844]
[1726476402466,7.30443,2323.2,2323.0,0.07556844]
[1726476402877,4.30459,2323.1,2323.0,0.07556844]
[1726476403184,4.30459,2323.1,2322.7,2.9267]
[1726476403339,4.30459,2323.1,2323.0,0.07488521]
[1726476403546,4.30459,2323.1,2322.7,7.18183751]
[1726476403857,11.609,2323.2,2322.8,0.15868418]
[1726476404472,7.3045,2323.2,2322.8,0.15868418]
[1726476404783,4.30415,2323.4,2323.1,4.17133833]
[1726476404784,7.30427,2323.3,2323.1,4.17133833]
[1726476405184,7.30427,2323.3,2323.2,0.07455991]
[1726476405747,7.30427,2323.3,2323.0,3.0057]
[1726476405946,7.25427,2323.3,2323.1,0.07455991]
[1726476406243,4.3044,2323.2,2323.1,0.07455991]
[1726476406947,7.25423,2323.3,2323.1,0.07455991]
[1726476409457,7.28252,2323.7,2323.1,0.07455991]
[1726476409458,4.30393,2323.5,2323.1,4.97943558]
[1726476409868,4.30393,2323.5,2323.1,5.06319028]
[1726476410469,8.60788,2323.5,2323.1,5.06319028]
[1726476410672,4.30393,2323.5,2323.2,1.23736203]
[1726476411198,4.30413,2323.4,2323.3,0.07455991]
[1726476411567,4.30413,2323.4,2323.1,0.73353734]
[1726476411763,4.30433,2323.3,2323.2,0.07455991]
[1726476412275,8.60827,2323.4,2323.0,3.0057]
[1726476412474,4.30413,2323.4,2323.1,1.14819883]
[1726476412779,4.30413,2323.4,2323.1,1.22275874]
[1726476413372,8.60831,2323.4,2323.1,1.22275874]
[1726476413983,3.0,2323.8,2323.2,3.0811]
[1726476414283,4.30431,2323.3,2323.0,2.8457]
[1726476414486,4.30422,2323.4,2323.1,0.07455991]
[1726476414704,4.3044,2323.2,2323.1,0.07455991]
[1726476416095,8.6088,2323.2,2323.1,0.07455991]
[1726476417050,4.3044,2323.2,2323.1,0.07455991]
[1726476418053,7.30418,2323.4,2323.1,0.07455991]
[1726476418353,7.30418,2323.4,2323.1,4.24589824]
[1726476418548,4.30425,2323.3,2323.1,4.24589824]
[1726476418752,4.30425,2323.3,2323.1,5.38554506]
[1726476418973,8.60858,2323.3,2323.1,5.38554506]
[1726476419255,4.3042,2323.4,2323.1,5.38554506]
[1726476419456,4.30437,2323.3,2323.1,1.21420673]
[1726476419682,4.30437,2323.3,2323.1,0.07455991]
[1726476419852,4.3044,2323.2,2323.1,0.07455991]
[1726476421387,4.30425,2323.3,2323.1,0.07455991]
[1726476421597,4.30406,2323.4,2323.1,0.07455991]
[1726476421989,4.30422,2323.3,2323.1,0.07455991]
[1726476422200,3.0,2323.6,2323.1,0.07455991]
[1726476422376,4.30435,2323.3,2323.1,0.07455991]
[1726476424902,4.3044,2323.2,2323.1,0.07455991]
[1726476425810,4.30411,2323.4,2323.1,0.78371973]
[1726476425957,4.30423,2323.3,2323.1,0.07455991]
[1726476427257,7.3038,2323.6,2323.1,8.55046824]
[1726476427466,4.30356,2323.7,2323.3,4.17133833]
[1726476427806,4.30356,2323.7,2323.4,0.07382275]
[1726476428011,8.60719,2323.7,2323.4,0.07382275]
[1726476428297,8.60717,2323.7,2323.4,0.07382275]
[1726476428663,4.30369,2323.6,2323.4,0.07382275]
[1726476429479,7.30332,2323.8,2323.4,5.62782554]
[1726476429693,7.30332,2323.8,2323.5,7.29203833]
[1726476429979,0.0385021,2324.0,2323.6,4.37729931]
[1726476429980,4.3414521,2324.0,2323.6,4.37729931]
[1726476430210,0.0385021,2324.0,2323.7,4.72133833]
[1726476430787,0.0385021,2324.0,2323.8,3.0898]
[1726476430982,0.0385021,2324.0,2323.9,0.78111383]
[1726476431510,0.0385021,2324.0,2323.9,0.85475231]
[1726476433361,0.0385021,2324.0,2323.9,9.32920064]
[1726476433521,3.0,2324.2,2323.9,9.32920064]
[1726476433684,3.0,2324.2,2323.9,5.02609064]
[1726476433893,3.0,2324.2,2324.0,1.24191706]
[1726476434377,3.0,2324.2,2324.1,0.06532372]
[1726476436618,4.30222,2324.4,2324.1,0.06532372]
[1726476436916,4.30222,2324.4,2324.1,1.12160001]
[1726476438707,4.30237,2324.3,2324.1,1.12160001]
[1726476439814,14.83096328,2324.2,2324.1,0.06532372]
[1726476440218,4.30311,2323.9,2323.6,4.52392255]
[1726476440396,4.30311,2323.9,2323.6,2.8491]
[1726476440595,4.30311,2323.9,2323.7,1.87242083]
[1726476443017,4.30311,2323.9,2323.6,2.8491]
[1726476443381,4.30332,2323.8,2323.6,2.8491]
[1726476443598,8.60636,2323.9,2323.6,2.8491]
[1726476443790,4.30311,2323.9,2323.6,2.8491]
[1726476443977,8.60636,2323.9,2323.6,2.8491]
[1726476444795,4.30311,2323.9,2323.7,4.17133833]
[1726476445036,4.30301,2324.0,2323.7,4.17133833]
[1726476445862,7.19509,2324.5,2323.9,8.47436833]
[1726476445999,4.30209,2324.5,2324.2,4.17133833]
[1726476446339,4.30228,2324.4,2324.2,4.17133833]
[1726476446533,4.30228,2324.4,2324.0,7.1347915]
[1726476446837,4.30228,2324.4,2324.1,1.15693732]
[1726476447143,8.60456,2324.4,2324.1,1.15693732]
[1726476447541,4.3024,2324.3,2324.1,1.15693732]
[1726476447845,4.30228,2324.4,2324.1,1.15693732]
[1726476447846,4.30221,2324.4,2324.1,1.15693732]
[1726476447998,4.30221,2324.4,2324.2,0.82080757]
[1726476449042,4.30239,2324.3,2324.2,0.82080757]
[1726476450935,4.30312,2323.9,2323.6,7.4]
[1726476451141,8.60635,2323.9,2323.5,2.9912]
[1726476451312,4.30333,2323.8,2323.6,1.14664883]
[1726476451948,4.30333,2323.8,2323.2,9.69212679]
[1726476451949,4.30366,2323.6,2323.2,13.86346512]
[1726476452167,4.30366,2323.6,2323.3,3.0701]
[1726476452389,7.30258,2324.2,2323.2,4.23432769]
[1726476452390,4.41161713,2323.5,2323.2,4.23432769]
[1726476452662,4.41161713,2323.5,2323.1,7.4]
[1726476452663,4.30418,2323.4,2323.1,7.4]
[1726476452865,4.30422,2323.3,2323.2,2.70414383]
[1726476453164,4.30422,2323.3,2323.0,8.91915615]
[1726476453461,4.30402,2323.5,2323.2,4.17133833]
[1726476453660,7.20373,2323.7,2323.3,3.52905475]
[1726476453661,7.30383,2323.6,2323.3,3.52905475]
[1726476454067,7.30383,2323.6,2323.4,0.06379237]
[1726476456676,4.30385,2323.5,2323.4,0.06379237]
[1726476456962,4.30418,2323.4,2323.1,3.0871]
[1726476457272,4.30422,2323.3,2323.2,0.87924888]
[1726476459239,4.30405,2323.4,2323.2,0.87924888]
[1726476459574,4.30389,2323.5,2323.3,2.9915]
[1726476459784,7.30369,2323.6,2323.4,0.80420872]
[1726476459939,7.30368,2323.6,2323.4,0.86800109]
[1726476461651,7.30368,2323.6,2323.5,0.38595011]
[1726476462283,7.30368,2323.6,2323.5,0.44974248]
[1726476462448,3.0,2323.6,2323.5,0.44974248]
[1726476462783,7.30366,2323.6,2323.5,0.44974248]
[1726476464066,11.60732,2323.6,2323.5,0.06379237]
[1726476464387,14.54902,2323.6,2323.5,0.06379237]
[1726476464548,4.30431,2323.3,2323.1,3.0411]
[1726476464743,4.30421,2323.4,2323.2,0.95343057]
[1726476464950,4.30419,2323.4,2323.2,0.95343057]
[1726476465150,4.30416,2323.4,2323.2,0.95343057]
[1726476465457,8.60829,2323.4,2323.2,0.95343057]
[1726476465645,4.30413,2323.4,2323.2,0.95343057]
[1726476465979,8.71604268,2323.3,2323.2,0.06379237]
[1726476466183,8.71604268,2323.3,2322.9,8.796]
[1726476466184,4.30477,2323.0,2322.9,8.796]
[1726476466388,4.3046,2323.1,2322.9,10.87322342]
[1726476467245,4.30454,2323.2,2322.9,10.87322342]
[1726476467599,4.3046,2323.1,2322.9,10.87322342]
[1726476467777,4.3046,2323.1,2323.0,2.24445617]
[1726476468089,4.3046,2323.1,2323.0,2.30898548]
[1726476468845,8.60908,2323.2,2323.0,2.30898548]
[1726476469051,4.30459,2323.1,2323.0,2.30898548]
[1726476469705,7.23059,2323.1,2323.0,0.06452931]
[1726476469883,14.64279385,2323.1,2323.0,0.06452931]
[1726476470079,14.53518,2323.1,2323.0,0.06452931]
[1726476470262,14.53518,2323.1,2322.4,2.9369]
[1726476470263,4.30533,2322.7,2322.4,2.9369]
[1726476471094,4.30553,2322.6,2322.4,2.9369]
[1726476471395,4.30533,2322.7,2322.4,2.9369]
[1726476471396,8.61082,2322.7,2322.4,2.9369]
[1726476471687,4.30555,2322.6,2322.4,2.9369]
[1726476472197,4.3057,2322.5,2322.3,1.68480131]
[1726476472370,8.61178,2322.4,2322.3,2.11988903]
[1726476472546,8.61214,2322.3,2322.2,8.796]
[1726476473091,4.30607,2322.3,2322.2,8.796]
[1726476473389,4.30607,2322.3,2322.2,9.96192]
[1726476474191,7.71286032,2322.3,2322.2,9.96192]
[1726476474799,7.71286032,2322.3,2322.2,1.16592]
[1726476475008,4.30634,2322.2,2322.0,2.8632]